Cogmind - Beta 11 X4 --- EXPLORER MODE // 2021.05.15 @ 13:25:13 Player: Luigi Panache Result: Destroyed by Quarantine Guard with Hypercooled Linear Accelerator Performance ------------- Evolutions (7) 3500 Regions Visited (23) 4600 Robots Destroyed (267) 1335 Value Destroyed (13673) 13673 Prototype IDs (29) 580 Alien Tech Used (8) 1600 Bonus (9826) 9826 TOTAL SCORE: 35114 Bonus ------- High Alert Combat Kills 957 Follower Combat Kills 1167 Entered Garrisons 800 Used RIF Installer 2000 Met Zhirov 300 Used Core Reset Matrix 3000 Scanned by Researcher 500 Met Sigix 2000 Friendly Fire -898 Cogmind --------- Core Integrity 0/1300 Matter 555/600 Energy 32/800 System Corruption 10% Temperature Cool (0) Movement Treading (170) Location -3/Quarantine Parts ------- > --- POWER (1) -------- (None) > --- PROPULSION (6) --- Heavy Treads Heavy Siege Treads Armored Heavy Treads > --- UTILITY (13) ----- Advanced Cryofiber Web Advanced Cooling System Experimental Coolant Injector Huge Storage Unit Energy Well Energy Well Improved Matter Compressor Experimental Targeting Computer Centrium Medium Armor Plating Centrium Medium Armor Plating EM Dispersion Field Phase Redirector Advanced Hacking Suite > --- WEAPON (2) ------- Sigix Broadsword > --- INVENTORY (25) --- Armored Medium Treads Armored Medium Treads Biometal Medium Treads Armored Heavy Treads Advanced Cooling System Long-range Proton Cannon EMDS Core Cannon High-powered Shotgun Enhanced Autogun Coil Gun Coil Gun Railgun Railgun Hypercooled Linear Accelerator Advanced EMP Blaster Micro-nuke Launcher Hellfire Missile Launcher Core Stripper Sigix Containment Pod Peak State ------------ > --- POWER ------------ Light Antimatter Reactor > --- PROPULSION ------- Heavy Treads Heavy Siege Treads Armored Heavy Treads > --- UTILITY ---------- Advanced Cryofiber Web Advanced Cooling System Experimental Coolant Injector Huge Storage Unit Energy Well Energy Well Improved Matter Compressor Experimental Targeting Computer Centrium Medium Armor Plating Centrium Medium Armor Plating EM Dispersion Field Phase Redirector Advanced Hacking Suite > --- WEAPON ----------- Sigix Broadsword > --- INVENTORY -------- Armored Medium Treads Armored Medium Treads Biometal Medium Treads Armored Heavy Treads Advanced Cooling System Long-range Proton Cannon EMDS Core Cannon High-powered Shotgun Enhanced Autogun Coil Gun Coil Gun Railgun Railgun Hypercooled Linear Accelerator Advanced EMP Blaster Micro-nuke Launcher Hellfire Missile Launcher Core Stripper Sigix Containment Pod [Rating: 190] Favorites ----------- Power Heavy Ion Engine Engine Heavy Ion Engine Power Core Micro Nuclear Core Reactor Heavy Antimatter Reactor Propulsion Light Treads Treads Light Treads Leg Aluminum Leg Flight Unit Improved Cesium-ion Thruster Utility Huge Storage Unit Device Coolant Injector Storage Huge Storage Unit Processor Targeting Computer Hackware Relay Coupler [Sentry] Protection Light Armor Plating Artifact Phase Armor Weapon Enhanced Autogun Energy Gun Heavy EM Pulse Gun Energy Cannon Long-range Proton Cannon Ballistic Gun Enhanced Autogun Launcher Mini Grenade Launcher Special Weapon Improved Remote Datajack Impact Weapon Core Stripper Slashing Weapon Sigix Broadsword Special Melee Weapon Datajack Build | -11 -10 -10 -9 -9 -9 -8 -8 -8 -8 -8 -7 -7 -7 -7 -5 -5 -5 -5 -4 -4 -3 -3 -3 ------- Run | Scr Mat Min Mat Min Exi Min Mat Gar Mat Gar Fac Sto Gar Rec Fac Upp Upp Zhi Pro Fac Res Gar Qua Slots Evolved 15 | . 1 . 2 . . . 2 . . . 2 . . . 4 . . . . 2 2 . . Power . | . . . . . . . . . . . . . . . . . . . . . . . . Propulsion 4 | . . . 1 . . . 1 . . . . . . . 1 . . . . 1 . . . Utility 11 | . 1 . 1 . . . 1 . . . 2 . . . 3 . . . . 1 2 . . Weapon . | . . . . . . . . . . . . . . . . . . . . . . . . Parts Attached 222 | . 6 . 11 . . . . 3 13 14 23 15 11 3 17 7 4 5 7 11 2 14 56 Power 13 | . . . 2 . . . . . 1 . 1 1 . . . 1 1 1 . . . 1 4 Engine 5 | . . . 2 . . . . . 1 . . . . . . 1 . . . . . . 1 Core 4 | . . . . . . . . . . . 1 1 . . . . 1 . . . . . 1 Reactor 4 | . . . . . . . . . . . . . . . . . . 1 . . . 1 2 Propulsion 61 | . 1 . 5 . . . . 1 8 5 8 5 6 3 3 4 2 . 1 4 1 . 4 Treads 55 | . . . 3 . . . . 1 8 5 8 4 4 3 3 4 2 . 1 4 1 . 4 Leg 5 | . 1 . 2 . . . . . . . . . 2 . . . . . . . . . . Wheel . | . . . . . . . . . . . . . . . . . . . . . . . . Hover . | . . . . . . . . . . . . . . . . . . . . . . . . Flight 1 | . . . . . . . . . . . . 1 . . . . . . . . . . . Utility 66 | . 3 . 2 . . . . 2 2 4 6 4 2 . 7 1 . 2 4 3 1 5 18 Device 17 | . . . . . . . . . . . 2 . . . 1 1 . 1 1 1 . 1 9 Storage 7 | . 1 . . . . . . . . . 1 . . . 2 . . 1 . . . . 2 Processor 5 | . 1 . . . . . . . 2 . 1 . . . . . . . . . . . 1 Hackware 17 | . . . . . . . . 1 . 1 . 2 2 . 1 . . . 2 2 1 4 1 Protection 18 | . 1 . 2 . . . . 1 . 3 2 2 . . 3 . . . 1 . . . 3 Artifact 2 | . . . . . . . . . . . . . . . . . . . . . . . 2 Weapon 82 | . 2 . 2 . . . . . 2 5 8 5 3 . 7 1 1 2 2 4 . 8 30 Energy Gun 6 | . 2 . 2 . . . . . . 2 . . . . . . . . . . . . . Energy Cannon 6 | . . . . . . . . . . . 1 . . . . . . . . . . . 5 Ballistic Gun 39 | . . . . . . . . . 2 2 3 3 2 . 4 1 1 2 1 2 . 5 11 Ballistic Cannon . | . . . . . . . . . . . . . . . . . . . . . . . . Launcher 17 | . . . . . . . . . . 1 4 . 1 . 1 . . . . . . 2 8 Special Weapon 6 | . . . . . . . . . . . . . . . 2 . . . 1 2 . 1 . Impact Weapon 1 | . . . . . . . . . . . . . . . . . . . . . . . 1 Slashing Weapon 5 | . . . . . . . . . . . . . . . . . . . . . . . 5 Piercing Weapon . | . . . . . . . . . . . . . . . . . . . . . . . . Special Melee Weapon 2 | . . . . . . . . . . . . 2 . . . . . . . . . . . Unidentified Prototypes 19 | . . . 1 . . . . . 2 . 2 2 . . . . . 3 . . . . 9 Corrupted Parts 5 | . . . . . . . . . 1 . . . . . . . . . 1 . . 1 2 System Corruption 25 | . . . . . . . . . 1 . . . . . . . . . 9 . . 10 5 Parts Lost 54 | . . . . . . . . 1 1 10 2 2 4 . 10 2 3 . 8 . . 4 7 Power 6 | . . . . . . . . . . . 1 1 . . 1 . 1 . . . . 1 1 Propulsion 20 | . . . . . . . . . . 5 . . 2 . 3 2 2 . 5 . . . 1 Utility 22 | . . . . . . . . 1 1 4 1 1 1 . 5 . . . 3 . . 1 4 Weapon 6 | . . . . . . . . . . 1 . . 1 . 1 . . . . . . 2 1 Highest Loss Streak 7 | . . . . . . . . 1 1 6 1 1 3 . 5 2 3 . 7 . . 2 2 Average Slot Usage (%) 86 | . 97 100 95 100 100 100 83 92 98 87 95 99 95 100 75 90 94 89 76 78 70 74 72 Engine 3 | . 12 12 10 10 10 10 8 8 7 8 2 . . . . 1 . . . . . . . Core 1 | . . . . . . . . . . . 2 6 7 7 3 . 1 3 . . . . 1 Treads 18 | . . . 5 30 30 30 25 31 33 22 27 28 26 28 20 24 24 27 10 15 15 13 12 Leg 3 | . 25 25 23 . . . . . . . . . . . . . . . . . . . . Device 7 | . . . . . . . . . . . 6 14 8 7 9 13 16 14 8 5 9 12 13 Storage 11 | . 12 12 10 10 10 10 8 8 8 8 7 7 7 7 8 16 16 18 20 15 13 13 15 Processor 5 | . 9 12 10 10 10 10 8 8 14 9 8 9 7 7 5 5 5 5 . . . . . Hackware 9 | . . . . . . . . 2 . 7 7 11 19 28 10 11 11 11 14 22 13 21 10 Protection 8 | . 12 12 16 20 20 20 16 16 16 14 17 7 4 . 5 5 5 5 4 5 4 . 4 Energy Gun 4 | . 25 25 20 20 20 20 16 16 9 . . . . . . . . . . . . . . Ballistic Gun 5 | . . . . . . . . . 6 12 6 8 7 7 7 8 11 1 11 7 4 5 1 Launcher 1 | . . . . . . . . . . 3 7 3 3 7 1 . . . . . . . 1 Naked Turns . | . . . . . . . . . . . . . . . . . . . . . . . . Heaviest Build 186 | 18 58 54 59 59 59 59 59 63 63 69 110 104 98 92 106 113 113 122 141 145 145 151 186 Greatest Support 215 | 20 20 20 60 60 60 60 60 80 83 80 101 93 93 93 113 119 122 122 122 186 215 215 215 Greatest Overweight (x) 9 | . 2 2 2 . . . . . . 1 1 1 9 1 2 1 1 . 5 1 . . 1 Average Overweight (x) . | . 1 2 1 . . . . . . . . 1 1 . . . . . . . . . . Largest Inventory Capacity 25 | . 20 20 20 20 20 20 20 20 20 20 25 25 25 25 25 25 25 25 25 25 25 25 25 Average Capacity 22 | . 18 20 20 20 20 20 20 20 20 20 21 25 25 25 25 25 25 25 25 25 25 25 25 Most Carried 25 | . 15 15 20 18 20 20 20 20 20 20 23 25 25 25 25 24 25 25 25 25 23 25 25 Average Carried 21 | . 10 15 17 18 19 20 20 18 19 19 20 24 24 24 24 23 24 24 25 24 22 24 22 Final Capacity 25 | 10 20 20 20 20 20 20 20 20 20 20 25 25 25 25 25 25 25 25 25 25 25 25 25 Final Carried 25 | 7 15 15 18 18 20 20 20 20 20 20 23 25 22 25 23 24 25 25 25 22 23 25 25 Class Distribution -------------------- 51% | Hacker-Mutant 36% | Bothacker-Mutant 8% | Botlord-Mutant 3% | Scavenger-Mutant Dominant Class ---------------- Hacker-Mutant | -10/Materials Hacker-Mutant | -10/Mines Hacker-Mutant | -9/Materials Hacker-Mutant | -9/Mines Hacker-Mutant | -9/Exiles Hacker-Mutant | -8/Mines Hacker-Mutant | -8/Materials Hacker-Mutant | -8/Garrison Hacker-Mutant | -8/Materials Hacker-Mutant | -8/Garrison Hacker-Mutant | -7/Factory Bothacker-Mutant | -7/Storage Bothacker-Mutant | -7/Garrison Hacker-Mutant | -7/Recycling Bothacker-Mutant | -5/Factory Bothacker-Mutant | -5/Upper Caves Bothacker-Mutant | -5/Upper Caves Bothacker-Mutant | -5/Zhirov Bothacker-Mutant | -4/Proximity Caves Bothacker-Mutant | -4/Factory Bothacker-Mutant | -3/Research Bothacker-Mutant | -3/Garrison Hacker-Mutant | -3/Quarantine Resources | -11 -10 -10 -9 -9 -9 -8 -8 -8 -8 -8 -7 -7 -7 -7 -5 -5 -5 -5 -4 -4 -3 -3 -3 ----------- Run | Scr Mat Min Mat Min Exi Min Mat Gar Mat Gar Fac Sto Gar Rec Fac Upp Upp Zhi Pro Fac Res Gar Qua Matter Collected 7716 | 200 205 . 90 . 20 . . 30 304 561 565 816 367 104 473 549 179 150 305 465 . 774 1559 Remotely . | . . . . . . . . . . . . . . . . . . . . . . . . Salvage Created 10853 | . 241 66 464 24 . . 112 506 629 939 1473 781 642 . 1083 535 261 . 172 204 31 1092 1598 Parts 579 | . 24 9 26 4 . . 6 9 41 62 79 49 32 . 42 18 15 . 12 9 3 39 100 Haulers Intercepted 7 | . . . 1 . . . . . 2 . 2 1 . . . . . . . . . . 1 Recyclers Shooed 5 | . 1 . . . . . . . . . 3 . . . . . . . . . . . 1 Parts Field Recycled . | . . . . . . . . . . . . . . . . . . . . . . . . Retrieved Matter . | . . . . . . . . . . . . . . . . . . . . . . . . Parts Self-Destructed . | . . . . . . . . . . . . . . . . . . . . . . . . Prevented . | . . . . . . . . . . . . . . . . . . . . . . . . Kills | -11 -10 -10 -9 -9 -9 -8 -8 -8 -8 -8 -7 -7 -7 -7 -5 -5 -5 -5 -4 -4 -3 -3 -3 ------- Run | Scr Mat Min Mat Min Exi Min Mat Gar Mat Gar Fac Sto Gar Rec Fac Upp Upp Zhi Pro Fac Res Gar Qua Combat Hostiles Destroyed 202 | . 6 . 11 2 . . 2 9 9 23 26 18 18 . 16 8 6 . 2 . 1 19 26 Melee 4 | . . . . . . . . . . . . . . . . . . . . . . . 4 Guns 113 | . 6 . 10 . . . 1 8 9 13 14 9 10 . 9 8 6 . 2 . 1 6 1 Cannons 1 | . . . . . . . . . . . . . . . . . . . . . . . 1 AOE 68 | . . . . 2 . . . . . 10 11 9 8 . 6 . . . . . . 8 14 Classes Destroyed 21 | . 4 1 5 . . . 1 1 2 2 2 . . . . . . . . . . . 3 Worker 19 | . 1 1 . . . . . . . . 5 2 . . 1 . . . . 1 . . 8 Builder 11 | . . . . . . . . . 1 . . 2 . . . . . . . . . . 8 Tunneler 3 | . . 2 . . . . . . . . . . . . 1 . . . . . . . . Hauler 7 | . . . 1 . . . . . 2 . 2 1 . . . . . . . . . . 1 Recycler 4 | . 1 . . . . . . . . . 2 . . . . . . . . 1 . . . Mechanic 2 | . . . . . . . . . 1 . . . . . 1 . . . . . . . . Operator 5 | . . . 1 . . . . . . . 1 . . . . . . . 1 . . . 2 Drone 2 | . . . . . . . . . . 2 . . . . . . . . . . . . . Watcher 12 | . 2 . 2 . . . . . 3 . 1 2 . . . . . . . 1 . . 1 Swarmer 45 | . 6 . 5 2 . . . . 2 10 3 . 4 . . . 3 . . . 1 9 . Grunt 94 | . . . 3 . . . . 7 6 4 14 9 13 . 10 7 3 . . . . 8 10 Brawler 10 | . . . 2 . . . . . . . 1 1 1 . 3 1 . . . . . 1 . Duelist 6 | . . . . . . . . 2 . . 3 1 . . . . . . . . . . . Protector 4 | . . . . . . . . . . . 1 2 . . 1 . . . . . . . . Researcher 2 | . . . . . . . . . . . . . . . . . . . . . . . 2 Sentry 8 | . . . 1 . . . 1 . . 3 1 2 . . . . . . . . . . . Hunter 11 | . . . . . . . 1 . 1 2 1 1 . . . . . . . . . . 5 Programmer 11 | . . . . . . . . . . . 2 2 . . 2 . . . 1 . . 1 3 Q-Series 1 | . . . . . . . . . . . . . . . . . . . . . . . 1 Behemoth 3 | . . . . . . . . . . 2 . . . . . . . . 1 . . . . Quarantine Guard 7 | . . . . . . . . . . . . . . . . . . . . . . . 7 Lightning 1 | . . . . . . . . . . . . . . . . . . . . . . . 1 Assembled 2 | . . . . . . . . . . . . . . . . . . . . . . . 2 Thug 1 | . . . . . . . . . . . . 1 . . . . . . . . . . . Best Kill Streak 10 | . 2 1 5 2 . . 1 2 10 7 9 10 9 . 9 5 3 . 1 2 1 6 8 Combat Bots Only 9 | . 2 . 4 2 . . 1 2 4 7 6 8 9 . 8 5 3 . 1 . 1 6 4 Max Kills in Single Turn 4 | . 1 1 1 2 . . 1 1 2 4 2 3 2 . 3 1 1 . 1 1 1 3 4 Gunslinging . | . . . . . . . . . . . . . . . . . . . . . . . . Exploded 4 | . . . . 2 . . . . . 4 2 3 2 . 3 . . . . . . 3 3 Melee 1 | . . . . . . . . . . . . . . . . . . . . . . . 1 Uniques/NPCs Destroyed . | . . . . . . . . . . . . . . . . . . . . . . . . Combat | -11 -10 -10 -9 -9 -9 -8 -8 -8 -8 -8 -7 -7 -7 -7 -5 -5 -5 -5 -4 -4 -3 -3 -3 -------- Run | Scr Mat Min Mat Min Exi Min Mat Gar Mat Gar Fac Sto Gar Rec Fac Upp Upp Zhi Pro Fac Res Gar Qua Damage Taken 15280 | . 39 . 112 29 . . 73 384 265 2012 618 1023 726 . 1644 517 267 . 796 163 57 1935 4620 Core 2102 | . 9 . 13 5 . . . 53 13 269 55 85 122 . 94 39 7 . 153 . . 198 987 Absorbed by Shields . | . . . . . . . . . . . . . . . . . . . . . . . . Reduced by Siege Mode 6 | . . . . . . . . . . . . . . . . . . . . . . 6 . Redirected to Core 767 | . . . . . . . . . . . . . . . . . . . . . . . 767 Core Remaining (%) 80 | 100 . 96 . . . 95 . . . 39 . . . 62 . . . . 70 100 . . . Volleys Fired 696 | . 14 4 33 3 . . 6 27 41 96 52 44 33 . 73 43 16 . 22 23 12 74 80 Largest 2 | . 2 2 2 2 . . 2 2 2 2 2 2 2 . 2 2 2 . 2 2 1 2 2 Hottest 300 | . 112 112 112 90 . . 90 90 90 90 66 56 56 . 56 56 58 . 63 63 40 56 300 Shots Fired 1131 | . 28 8 66 6 . . 12 54 81 180 73 69 49 . 120 60 32 . 45 31 12 102 103 Gun 940 | . 28 8 66 6 . . 12 54 81 174 54 50 40 . 103 60 32 . 45 17 2 65 43 Cannon 29 | . . . . . . . . . . . . . . . . . . . . . . . 29 Launcher 112 | . . . . . . . . . . 6 19 19 9 . 5 . . . . . . 23 31 Special 50 | . . . . . . . . . . . . . . . 12 . . . . 14 10 14 . Kinetic 737 | . . . . . . . . . 65 161 54 50 40 . 103 60 32 . 45 17 2 65 43 Thermal 97 | . 28 8 60 . . . . . . . . . . . . . . . . . . . 1 Explosive 76 | . . . . . . . . . . 6 13 19 9 . . . . . . . . . 29 Electromagnetic 171 | . . . 6 6 . . 12 54 16 13 6 . . . 5 . . . . . . 23 30 Robot Hit Streak 84 | . 10 5 21 15 . . 27 37 48 42 50 65 61 . 29 19 48 . 83 12 18 58 84 Robot Miss Streak 6 | . 3 1 2 . . . . 1 1 1 6 2 3 . 2 1 . . 1 1 . 2 1 Penetration Max 2 | . . . . . . . . . . . . . . . . . . . . . . . 2 Secondary Targets 12 | . . . . . . . . 1 1 2 . . 3 . 1 1 1 . . . . 2 . Max Gunslinging Chain 1 | . . . . . . . . 1 1 1 . . 1 . 1 1 1 . . . . 1 . Shots Hit Robots 987 | . 17 6 52 6 . . 12 44 70 151 67 57 41 . 101 54 30 . 37 26 12 84 120 Core Hits 642 | . 11 3 19 3 . . 2 18 28 62 112 94 68 . 50 26 15 . 9 6 1 36 79 Critical Kills 5 | . . . . . . . . . . . . . . . . . 1 . . . . . 4 Critical Parts Destroyed 7 | . . . . . . . . . . . . . . . 2 . . . . . . . 5 Critical Strikes 28 | . 2 1 6 . . . . 3 . 3 . . . . 2 . 1 . . . . . 10 Burn 9 | . 2 1 6 . . . . . . . . . . . . . . . . . . . . Destroy 16 | . . . . . . . . . . 3 . . . . 2 . 1 . . . . . 10 Corrupt 3 | . . . . . . . . 3 . . . . . . . . . . . . . . . Melee Attacks 40 | . . . . . . . . . . . . 7 . . . . . . . . . . 33 Kinetic 2 | . . . . . . . . . . . . . . . . . . . . . . . 2 Impact . | . . . . . . . . . . . . . . . . . . . . . . . . Slashing 31 | . . . . . . . . . . . . . . . . . . . . . . . 31 Piercing . | . . . . . . . . . . . . . . . . . . . . . . . . Sneak Attacks 2 | . . . . . . . . . . . . . . . . . . . . . . . 2 Combat Hostiles . | . . . . . . . . . . . . . . . . . . . . . . . . Follow-up Attacks . | . . . . . . . . . . . . . . . . . . . . . . . . Damage Inflicted 32394 | . 245 82 722 154 . . 136 728 1081 3002 3159 2892 1759 . 2872 1017 507 . 887 291 39 2217 10604 Guns 15008 | . 242 58 722 70 . . 136 661 1081 2308 1330 1098 869 . 1604 1017 507 . 887 290 39 950 1139 Cannons 1284 | . . . . . . . . . . . . . . . . . . . . . . . 1284 Explosions 13015 | . . . . 84 . . . 67 . 694 1767 1794 890 . 1259 . . . . . . 1267 5193 Melee 2912 | . . . . . . . . . . . . . . . . . . . . . . . 2912 Ramming 175 | . 3 24 . . . . . . . . 62 . . . 9 . . . . 1 . . 76 Kinetic 12878 | . . . . . . . . . 893 2196 1330 1098 869 . 1604 1017 507 . 887 290 39 950 1198 Thermal 3059 | . 242 58 639 84 . . . 67 . 102 166 . . . 669 . . . . . . 131 901 Explosive 9498 | . . . . . . . . . . 592 1360 1794 890 . . . . . . . . . 4862 Electromagnetic 3931 | . . . 83 70 . . 136 661 188 112 241 . . . 590 . . . . . . 1136 714 Impact . | . . . . . . . . . . . . . . . . . . . . . . . . Slashing 2853 | . . . . . . . . . . . . . . . . . . . . . . . 2853 Piercing . | . . . . . . . . . . . . . . . . . . . . . . . . Highest Corruption 19 | . . . 2 2 2 2 . . 1 1 . 3 4 4 10 10 10 10 19 . . 11 11 Average Corruption 5 | . . . 1 2 2 2 . . 1 1 . 2 3 4 7 10 10 10 10 . . 3 9 Corruption Purged . | . . . . . . . . . . . . . . . . . . . . . . . . Effects 232 | . . . 2 2 2 2 . . 2 4 . 7 10 3 32 33 26 7 33 . . 15 52 Message Errors 64 | . . . 1 2 . 1 . . . 1 . 3 2 1 10 6 4 1 10 . . 5 17 Matter Fused 51 | . . . . . . . . . . . . 1 6 2 8 7 11 . 7 . . 4 5 Heat Flow Errors 29 | . . . . . 2 . . . . . . 3 1 . 5 5 2 2 5 . . 1 3 Energy Discharges 20 | . . . 1 . . 1 . . 1 . . . . . 2 . 1 . 7 . . 2 5 Parts Rejected 3 | . . . . . . . . . . . . . . . 1 1 . . . . . . 1 Data Loss (minor) 26 | . . . . . . . . . . 3 . . 1 . 3 3 4 2 . . . 1 9 Data Loss (major) 6 | . . . . . . . . . . . . . . . 1 3 1 . . . . . 1 Misfires 7 | . . . . . . . . . . . . . . . 1 1 . . 1 . . . 4 Alerts 6 | . . . . . . . . . . . . . . . 1 1 . . 1 . . 1 2 Misdirections 16 | . . . . . . . . . . . . . . . . 5 3 2 2 . . . 4 Weapon Failures 4 | . . . . . . . . . 1 . . . . . . 1 . . . . . 1 1 Overload Shots . | . . . . . . . . . . . . . . . . . . . . . . . . Overflow Damage 1304 | . . . . . . . . . . 41 5 54 17 . 45 . . . . . . 21 1121 Projectiles 290 | . . . . . . . . . . . . . . . . . . . . . . . 290 Explosions 402 | . . . . . . . . . . 41 4 54 17 . 45 . . . . . . 21 220 Melee 612 | . . . . . . . . . . . 1 . . . . . . . . . . . 611 Knockbacks 2 | . . . . . . . . . . . . . . . . . . . . . . . 2 Impact 2 | . . . . . . . . . . . . . . . . . . . . . . . 2 Kinetic . | . . . . . . . . . . . . . . . . . . . . . . . . Secondary . | . . . . . . . . . . . . . . . . . . . . . . . . Self-Inflicted Damage 1066 | . . . . . . . . 7 . 1 171 44 56 . 90 . . . . . . 115 582 Shots 39 | . . . . . . . . 1 . 1 6 2 2 . 5 . . . . . . 8 14 Rammed 13 | . . . . . . . . . . . 5 . . 1 1 . . . . 1 . . 5 Targets Rammed 20 | . 1 4 . . . . . . . . 6 . . 1 2 . . . . 1 . . 5 Kicked 5 | . 1 4 . . . . . . . . . . . . . . . . . . . . . Crushed 2 | . . . . . . . . . . . 1 . . . 1 . . . . . . . . Highest Temperature 531 | . 240 120 531 99 194 . 123 247 123 269 57 209 200 . 187 178 143 147 217 . . 22 268 Average Temperature 80 | . 66 48 187 52 93 . 48 81 21 77 13 62 48 . 40 98 41 71 74 . . 14 104 Received Heat Transfer 4666 | . . . 33 . . . 36 297 153 501 189 492 513 . 750 391 135 . 108 9 . 421 638 Effects 11 | . . . 9 . . . . . . 2 . . . . . . . . . . . . . Shutdowns 1 | . . . 1 . . . . . . . . . . . . . . . . . . . . Interference 9 | . . . 7 . . . . . . 2 . . . . . . . . . . . . . Short Circuit 1 | . . . 1 . . . . . . . . . . . . . . . . . . . . Siege Activations 3 | . . . . . . . . . . . . . . . . . . . . . . 1 2 Total Turns 17 | . . . . . . . . . . . . . . . . . . . . . . 9 8 Longest Duration 9 | . . . . . . . . . . . . . . . . . . . . . . 9 7 Robots Corrupted 15 | . . . . . . . 1 1 . . 1 . . . 1 . . . . . . 5 6 Combat Hostiles 15 | . . . . . . . 1 1 . . 1 . . . 1 . . . . . . 5 6 Parts Fried 24 | . . . . . . . . 4 . . 5 . . . 5 . . . . . . 5 5 Impact Corruptions 3 | . . . . . . . . . . . 2 . . . . . . . . . . . 1 Robots Melted 1 | . . . 1 . . . . . . . . . . . . . . . . . . . . Combat Hostiles 1 | . . . 1 . . . . . . . . . . . . . . . . . . . . Parts Melted 5 | . . 1 3 . . . . . . . . . . . . . . . . . . 1 . Heat Transferred 4286 | . 742 222 2072 50 . . . 100 . 100 100 . . . 550 . . . . . . 150 200 Parts Sabotaged . | . . . . . . . . . . . . . . . . . . . . . . . . Parts Stolen . | . . . . . . . . . . . . . . . . . . . . . . . . Parts Stripped . | . . . . . . . . . . . . . . . . . . . . . . . . Power Chain Reactions 10 | . . . . 1 . . . 1 . 1 1 . . . 2 . . . . . . 3 1 Missiles Intercepted . | . . . . . . . . . . . . . . . . . . . . . . . . Alert | -11 -10 -10 -9 -9 -9 -8 -8 -8 -8 -8 -7 -7 -7 -7 -5 -5 -5 -5 -4 -4 -3 -3 -3 ------- Run | Scr Mat Min Mat Min Exi Min Mat Gar Mat Gar Fac Sto Gar Rec Fac Upp Upp Zhi Pro Fac Res Gar Qua Peak Influence 1041 | . 142 49 180 92 . . 75 396 441 704 634 696 677 232 1041 . . . . 154 148 752 420 Initial 969 | . . 39 1 41 . . . 36 141 84 274 110 223 220 969 . . . . . 52 86 317 Average 319 | . 54 27 82 50 . . 41 196 263 420 414 431 458 226 734 . . . . 92 98 580 173 Maximum Alert Level 3 | . . . . . . . . 1 2 3 2 2 2 1 3 . . . . . . 3 2 Low Security (%) 40 | . 100 100 100 100 . 100 100 52 28 5 . 17 . . 14 . . . . 100 100 8 52 Level 1 27 | . . . . . . . . 47 58 49 51 9 49 100 . . . . . . . 6 43 Level 2 20 | . . . . . . . . . 13 31 48 73 50 . 14 . . . . . . 41 3 Level 3 12 | . . . . . . . . . . 13 . . . . 70 . . . . . . 42 . Level 4 . | . . . . . . . . . . . . . . . . . . . . . . . . Level 5 . | . . . . . . . . . . . . . . . . . . . . . . . . High Security . | . . . . . . . . . . . . . . . . . . . . . . . . Max Security . | . . . . . . . . . . . . . . . . . . . . . . . . Squads Dispatched 39 | . . . 1 . . . . . 3 . 9 7 . . 8 . . . . 1 . . 10 Investigation 6 | . . . . . . . . . 1 . 1 . . . 2 . . . . 1 . . 1 Extermination 8 | . . . . . . . . . . . 2 2 . . 2 . . . . . . . 2 Reinforcement 16 | . . . 1 . . . . . 1 . 4 2 . . 1 . . . . . . . 7 Assault 6 | . . . . . . . . . . . 1 2 . . 3 . . . . . . . . Garrison 3 | . . . . . . . . . 1 . 1 1 . . . . . . . . . . . Intercept . | . . . . . . . . . . . . . . . . . . . . . . . . Construction Impeded 3 | . . . . . . . . . . . 1 . . . . . . . . . . . 2 Haulers Reinforced 3 | . . . . . . . . . . . 2 1 . . . . . . . . . . . Cargo Convoy Interrupts . | . . . . . . . . . . . . . . . . . . . . . . . . Stealth | -11 -10 -10 -9 -9 -9 -8 -8 -8 -8 -8 -7 -7 -7 -7 -5 -5 -5 -5 -4 -4 -3 -3 -3 --------- Run | Scr Mat Min Mat Min Exi Min Mat Gar Mat Gar Fac Sto Gar Rec Fac Upp Upp Zhi Pro Fac Res Gar Qua Distress Signals 17 | . 2 . 3 . . . . . 2 . . 4 . . 1 . . . . . . . 5 Communications Jammed . | . . . . . . . . . . . . . . . . . . . . . . . . Distress Signals . | . . . . . . . . . . . . . . . . . . . . . . . . Times Spotted 342 | . 10 . 17 3 . . 4 10 15 23 28 44 23 5 39 11 6 . 2 7 2 34 59 Peak Tracking Total 10 | . 3 . 5 3 . . 3 3 4 4 6 9 6 4 10 8 3 . 1 2 2 6 9 Tactical Retreats 17 | . . . . . . . . 1 . . . 6 2 . 5 . . . . . . 1 2 Traps | -11 -10 -10 -9 -9 -9 -8 -8 -8 -8 -8 -7 -7 -7 -7 -5 -5 -5 -5 -4 -4 -3 -3 -3 ------- Run | Scr Mat Min Mat Min Exi Min Mat Gar Mat Gar Fac Sto Gar Rec Fac Upp Upp Zhi Pro Fac Res Gar Qua Traps Triggered 20 | . 3 . 2 . . . . . . 3 1 . 2 . 3 . . . . . . 2 4 Indirectly 2 | . . . . . . . . . . . . . . . . . . . . . . 2 . Trap Hack Attempts . | . . . . . . . . . . . . . . . . . . . . . . . . Triggered . | . . . . . . . . . . . . . . . . . . . . . . . . Disarmed . | . . . . . . . . . . . . . . . . . . . . . . . . Reprogrammed . | . . . . . . . . . . . . . . . . . . . . . . . . Reused . | . . . . . . . . . . . . . . . . . . . . . . . . Traps Extracted . | . . . . . . . . . . . . . . . . . . . . . . . . Installed . | . . . . . . . . . . . . . . . . . . . . . . . . Triggered 1 | . . . . . . . . . . . . . . . . . . . 1 . . . . Machines | -11 -10 -10 -9 -9 -9 -8 -8 -8 -8 -8 -7 -7 -7 -7 -5 -5 -5 -5 -4 -4 -3 -3 -3 ---------- Run | Scr Mat Min Mat Min Exi Min Mat Gar Mat Gar Fac Sto Gar Rec Fac Upp Upp Zhi Pro Fac Res Gar Qua Machines Disabled 30 | . . . . . . . . 3 . 4 7 . 1 . . . . . . . . 3 12 Max in Single Turn 3 | . . . . . . . . 1 . 1 3 . 1 . . . . . . . . 1 2 Garrison Access 1 | . . . . . . . . . . . 1 . . . . . . . . . . . . Garrison Relay 11 | . . . . . . . . 3 . 4 . . 1 . . . . . . . . 3 . Machines Sabotaged . | . . . . . . . . . . . . . . . . . . . . . . . . Garrisons Compromised . | . . . . . . . . . . . . . . . . . . . . . . . . Overloaded Fab Kills . | . . . . . . . . . . . . . . . . . . . . . . . . Fab Network Shutdowns . | . . . . . . . . . . . . . . . . . . . . . . . . Hacking | -11 -10 -10 -9 -9 -9 -8 -8 -8 -8 -8 -7 -7 -7 -7 -5 -5 -5 -5 -4 -4 -3 -3 -3 --------- Run | Scr Mat Min Mat Min Exi Min Mat Gar Mat Gar Fac Sto Gar Rec Fac Upp Upp Zhi Pro Fac Res Gar Qua Machines Accessed 35 | . 4 . 3 . . . 1 . 2 . 2 4 . 3 3 . . 4 . 1 1 . 7 Terminals 21 | . 4 . 3 . . . . . . . 1 3 . 3 . . . . . 1 . . 6 Fabricators 1 | . . . . . . . . . . . 1 . . . . . . . . . . . . Repair Stations 3 | . . . . . . . . . 1 . . . . . 1 . . . . . . . 1 Recycling Units 2 | . . . . . . . . . . . . . . . 2 . . . . . . . . Scanalyzers . | . . . . . . . . . . . . . . . . . . . . . . . . Garrison Access 4 | . . . . . . . 1 . 1 . . 1 . . . . . . . . 1 . . Total Hacks 88 | . 8 . 10 . . . 1 . 5 . 5 5 . 9 8 . . 17 . 2 1 . 17 Successful 63 | . 5 . 4 . . . 1 . 4 . 3 4 . 2 7 . . 17 . . 1 . 15 Failed 25 | . 3 . 6 . . . . . 1 . 2 1 . 7 1 . . . . 2 . . 2 Catastrophic 4 | . . . . . . . . . . . . . . 2 1 . . . . 1 . . . Database Lockouts . | . . . . . . . . . . . . . . . . . . . . . . . . Manual 29 | . 6 . 7 . . . . . 1 . . 2 . 3 2 . . . . . . . 8 Terminals 49 | . 8 . 10 . . . . . . . 3 4 . 9 . . . . . 2 . . 13 Fabricators 2 | . . . . . . . . . . . 2 . . . . . . . . . . . . Repair Stations 9 | . . . . . . . . . 3 . . . . . 2 . . . . . . . 4 Recycling Units 6 | . . . . . . . . . . . . . . . 6 . . . . . . . . Scanalyzers . | . . . . . . . . . . . . . . . . . . . . . . . . Garrison Access 5 | . . . . . . . 1 . 2 . . 1 . . . . . . . . 1 . . Terminal Hacks 41 | . 5 . 4 . . . . . . . 1 3 . 2 . . . 17 . . . . 9 Record 7 | . . . . . . . . . . . . . . . . . . 5 . . . . 2 Part Schematic 10 | . 2 . 1 . . . . . . . . . . 1 . . . 4 . . . . 2 Robot Analysis 7 | . . . 1 . . . . . . . . 2 . . . . . 4 . . . . . Prototype ID Bank 5 | . 1 . . . . . . . . . . . . . . . . 4 . . . . . Open Door 1 | . . . . . . . . . . . . . . . . . . . . . . . 1 Level Access Points 2 | . . . . . . . . . . . . . . 1 . . . . . . . . 1 Branch Access Points 3 | . 1 . 1 . . . . . . . 1 . . . . . . . . . . . . Fabricator Index 1 | . . . . . . . . . . . . . . . . . . . . . . . 1 Unreport Threat 3 | . . . . . . . . . . . . 1 . . . . . . . . . . 2 Registered Components 1 | . . . 1 . . . . . . . . . . . . . . . . . . . . Zone Layout 1 | . 1 . . . . . . . . . . . . . . . . . . . . . . Fabricator Hacks 2 | . . . . . . . . . . . 2 . . . . . . . . . . . . Load Schematic 1 | . . . . . . . . . . . 1 . . . . . . . . . . . . Build 1 | . . . . . . . . . . . 1 . . . . . . . . . . . . Repair Station Hacks 8 | . . . . . . . . . 2 . . . . . 2 . . . . . . . 4 Scan Component 4 | . . . . . . . . . 1 . . . . . 1 . . . . . . . 2 Repair 4 | . . . . . . . . . 1 . . . . . 1 . . . . . . . 2 Recycling Unit Hacks 3 | . . . . . . . . . . . . . . . 3 . . . . . . . . Retrieve Components 3 | . . . . . . . . . . . . . . . 3 . . . . . . . . Scanalyzer . | . . . . . . . . . . . . . . . . . . . . . . . . Garrison Access Hacks 4 | . . . . . . . 1 . 1 . . 1 . . . . . . . . 1 . . Unlock Access 4 | . . . . . . . 1 . 1 . . 1 . . . . . . . . 1 . . Unauthorized Hacks 5 | . . . . . . . . . 1 . . . . . 2 . . . . . . . 2 Terminals 2 | . . . . . . . . . . . . . . . . . . . . . . . 2 Botnet 2 | . . . . . . . . . . . . . . . . . . . . . . . 2 Fabricators . | . . . . . . . . . . . . . . . . . . . . . . . . Repair Stations . | . . . . . . . . . . . . . . . . . . . . . . . . Recycling Units 2 | . . . . . . . . . . . . . . . 2 . . . . . . . . Mask 1 | . . . . . . . . . . . . . . . 1 . . . . . . . . Tunnel 1 | . . . . . . . . . . . . . . . 1 . . . . . . . . Scanalyzers . | . . . . . . . . . . . . . . . . . . . . . . . . Garrison Access 1 | . . . . . . . . . 1 . . . . . . . . . . . . . . Eject 1 | . . . . . . . . . 1 . . . . . . . . . . . . . . Data Cores Recovered 1 | . . . . . . . . . . . . . . . . . . . . . . . 1 Used . | . . . . . . . . . . . . . . . . . . . . . . . . Hacking Detections 23 | . 2 . 3 . . . . . . . 2 3 . 3 2 . . . . 1 1 . 6 Full Trace Events 7 | . 1 . . . . . . . . . 1 . . 3 1 . . . . 1 . . . Feedback Events . | . . . . . . . . . . . . . . . . . . . . . . . . Feedback Blocked . | . . . . . . . . . . . . . . . . . . . . . . . . Robot Schematics Acquired . | . . . . . . . . . . . . . . . . . . . . . . . . Robots Built . | . . . . . . . . . . . . . . . . . . . . . . . . Matter . | . . . . . . . . . . . . . . . . . . . . . . . . Time . | . . . . . . . . . . . . . . . . . . . . . . . . Total Robot Build Rating . | . . . . . . . . . . . . . . . . . . . . . . . . Part Schematics Acquired 9 | . 1 . 1 . . . . . . . . . . 1 . . . 4 . . . . 2 Parts Built 1 | . . . . . . . . . . . 1 . . . . . . . . . . . . Matter 102 | . . . . . . . . . . . 102 . . . . . . . . . . . . Time 17 | . . . . . . . . . . . 17 . . . . . . . . . . . . Total Part Build Rating 1 | . . . . . . . . . . . 1 . . . . . . . . . . . . Parts Repaired 4 | . . . . . . . . . 1 . . . . . 1 . . . . . . . 2 Time 124 | . . . . . . . . . 51 . . . . . 35 . . . . . . . 38 Parts Recycled . | . . . . . . . . . . . . . . . . . . . . . . . . Recycled Matter . | . . . . . . . . . . . . . . . . . . . . . . . . Retrieved Matter . | . . . . . . . . . . . . . . . . . . . . . . . . Retrieved Components 9 | . . . . . . . . . . . . . . . 9 . . . . . . . . Parts Scanalyzed . | . . . . . . . . . . . . . . . . . . . . . . . . Part Schematics Acquired . | . . . . . . . . . . . . . . . . . . . . . . . . Parts Damaged . | . . . . . . . . . . . . . . . . . . . . . . . . Bothacking | -11 -10 -10 -9 -9 -9 -8 -8 -8 -8 -8 -7 -7 -7 -7 -5 -5 -5 -5 -4 -4 -3 -3 -3 ------------ Run | Scr Mat Min Mat Min Exi Min Mat Gar Mat Gar Fac Sto Gar Rec Fac Upp Upp Zhi Pro Fac Res Gar Qua Used RIF Installer 4 | . . . . . . . . 1 . 1 . . 1 . . . . . . . . 1 . Coupler Efficiency 1 | . . . . . . . . . . 1 . . . . . . . . . . . . . Program Shield 1 | . . . . . . . . . . . . . . . . . . . . . . 1 . Autooverride 1 | . . . . . . . . . . . . . 1 . . . . . . . . . . Robots Hacked 31 | . . . . . . . . . . . . 6 . . 8 . . . . 9 2 6 . Non-combat 6 | . . . . . . . . . . . . 1 . . 1 . . . . 4 . . . Combat 25 | . . . . . . . . . . . . 5 . . 7 . . . . 5 2 6 . Autooverrided 1 | . . . . . . . . . . . . . . . . . . . . . 1 . . Robot Hacks Applied 35 | . . . . . . . . . . . . 6 . . 10 . . . . 10 2 7 . parse_system 1 | . . . . . . . . . . . . . . . . . . . . . 1 . . generate_echo 1 | . . . . . . . . . . . . . . . . . . . . 1 . . . drop_inventory 2 | . . . . . . . . . . . . 1 . . . . . . . 1 . . . ignore_parts 1 | . . . . . . . . . . . . . . . . . . . . 1 . . . purge_threat 2 | . . . . . . . . . . . . . . . 2 . . . . . . . . map_route 1 | . . . . . . . . . . . . . . . . . . . . 1 . . . spike_heat 1 | . . . . . . . . . . . . . . . . . . . . 1 . . . overwrite_iff 3 | . . . . . . . . . . . . 1 . . 2 . . . . . . . . streamctrl_high 4 | . . . . . . . . . . . . 1 . . 2 . . . . . . 1 . formatsys_low 1 | . . . . . . . . . . . . . . . 1 . . . . . . . . formatsys_high 18 | . . . . . . . . . . . . 3 . . 3 . . . . 5 1 6 . Relay Couplers Released 50 | . . . . . . . . 11 4 18 . . 3 . . . . . . . . 14 . Ejected 4 | . . . . . . . . . 4 . . . . . . . . . . . . . . Machine Destruction 46 | . . . . . . . . 11 . 18 . . 3 . . . . . . . . 14 . Attached 14 | . . . . . . . . 1 . 1 . 2 2 . 1 . . . . 2 1 4 . Robots Rewired 2 | . . . . . . . . . . 2 . . . . . . . . . . . . . Allies Hacked 2 | . . . . . . . . . . . . . . . . . . . 2 . . . . Hacks Repelled . | . . . . . . . . . . . . . . . . . . . . . . . . Allies | -11 -10 -10 -9 -9 -9 -8 -8 -8 -8 -8 -7 -7 -7 -7 -5 -5 -5 -5 -4 -4 -3 -3 -3 -------- Run | Scr Mat Min Mat Min Exi Min Mat Gar Mat Gar Fac Sto Gar Rec Fac Upp Upp Zhi Pro Fac Res Gar Qua Total Allies 38 | . . . . 3 . . . . . . . 7 . . 8 . . . . 5 2 6 7 Largest Group 7 | . . . . 3 1 1 1 . . . . 3 1 . 3 3 1 1 1 4 6 5 7 Highest-Rated Group 314 | . . . . 40 16 16 16 . . . . 94 30 . 122 122 26 26 26 202 314 258 124 Highest-Rated Ally 56 | . . . . 16 16 16 16 . . . . 32 30 . 49 49 26 26 26 56 56 56 47 Total Orders 5 | . . . . . . . . . . . . . . . . . . . . . 4 1 . STAY 1 | . . . . . . . . . . . . . . . . . . . . . 1 . . FOLLOW 2 | . . . . . . . . . . . . . . . . . . . . . 2 . . EXPLORE 2 | . . . . . . . . . . . . . . . . . . . . . 1 1 . Ally Attacks 266 | . . . . 2 . . 7 . . . . 37 5 . 21 9 . . . 25 11 47 102 Total Damage 6752 | . . . . 18 . . 97 . . . . 1184 181 . 461 371 . . . 828 278 1421 1913 Kills 28 | . . . . 1 . . . . . . . 7 1 . 1 2 . . . 3 2 7 4 Allies Corrupted 1 | . . . . . . . . . . . . . . . . . . . . . . 1 . Allies Melted 1 | . . . . . . . . . . . . . . . . 1 . . . . . . . Intel | -11 -10 -10 -9 -9 -9 -8 -8 -8 -8 -8 -7 -7 -7 -7 -5 -5 -5 -5 -4 -4 -3 -3 -3 ------- Run | Scr Mat Min Mat Min Exi Min Mat Gar Mat Gar Fac Sto Gar Rec Fac Upp Upp Zhi Pro Fac Res Gar Qua Robot Analysis Total 7 | . . . 1 . . . . . . . . 2 . . . . . 4 . . . . . Derelict Logs Recovered 4 | . . 1 . . . . . . . . . . . . . 2 1 . . . . . . Drone Launches 3 | . . . . . . . . . . . . . . . . . . . . 2 . 1 . Drone Recoveries 3 | . . . . . . . . . . . . . . . . . . . . 1 1 1 . Exploration | -11 -10 -10 -9 -9 -9 -8 -8 -8 -8 -8 -7 -7 -7 -7 -5 -5 -5 -5 -4 -4 -3 -3 -3 ------------- Run | Scr Mat Min Mat Min Exi Min Mat Gar Mat Gar Fac Sto Gar Rec Fac Upp Upp Zhi Pro Fac Res Gar Qua Turns Passed 16350 | . 768 712 709 125 390 266 90 555 407 1478 1359 671 508 300 1409 791 537 243 858 391 127 1191 2465 Spaces Moved 6828 | 1 309 247 241 73 243 167 45 286 128 605 634 187 150 175 535 357 239 143 307 191 53 560 952 Core . | . . . . . . . . . . . . . . . . . . . . . . . . Treads 6089 | . . . 60 73 243 167 45 286 128 605 634 187 149 175 535 357 239 143 307 191 53 560 952 Legs 739 | 1 309 247 181 . . . . . . . . . 1 . . . . . . . . . . Wheels . | . . . . . . . . . . . . . . . . . . . . . . . . Hover . | . . . . . . . . . . . . . . . . . . . . . . . . Flight . | . . . . . . . . . . . . . . . . . . . . . . . . Fastest Speed 120 | 120 120 280 160 160 160 160 160 160 160 160 160 262 262 158 158 160 160 160 160 165 165 166 166 Average Speed 195 | 120 228 280 235 160 160 160 160 160 161 200 185 262 273 168 218 193 181 160 257 171 165 166 170 Slowest Speed 840 | 120 280 280 280 160 160 160 160 160 162 260 265 263 840 262 360 260 260 160 660 260 166 166 275 Overloaded Moves . | . . . . . . . . . . . . . . . . . . . . . . . . Propulsion Burnouts . | . . . . . . . . . . . . . . . . . . . . . . . . Robots Hopped . | . . . . . . . . . . . . . . . . . . . . . . . . Cave-ins Triggered . | . . . . . . . . . . . . . . . . . . . . . . . . Teleports 1 | . . . . . . . . . . . . . . . . . . . . . . . 1 Exploration Rate (%) 42 | 2 57 65 33 25 64 61 10 59 16 70 18 40 43 53 13 49 36 60 54 5 8 81 86 Regions Visited 23 Branch Regions 11 Pre-discovered Areas 5 | . . 1 . . . . . . . . . . . . 1 . . 3 . . . . . Known Exits Taken 19 | 1 1 1 1 1 1 1 1 . 1 . 1 1 . 1 1 1 1 1 1 1 1 . . Unknown Exits Taken . | . . . . . . . . . . . . . . . . . . . . . . . . Scrap Searched 6 | . . . . . . . . . . . . . . . . 1 2 . 3 . . . . Spaces Dug . | . . . . . . . . . . . . . . . . . . . . . . . . Terrain Destroyed 424 | . . . . 2 . . . . . 24 46 69 15 . 5 . 1 . . 2 . 18 242 Melee . | . . . . . . . . . . . . . . . . . . . . . . . . Projectile 9 | . . . . . . . . . . . . . . . . . 1 . . 2 . . 6 AOE 415 | . . . . 2 . . . . . 24 46 69 15 . 5 . . . . . . 18 236 Terrain Rammed . | . . . . . . . . . . . . . . . . . . . . . . . . Walls Destroyed . | . . . . . . . . . . . . . . . . . . . . . . . . Machines Disabled . | . . . . . . . . . . . . . . . . . . . . . . . . Actions | -11 -10 -10 -9 -9 -9 -8 -8 -8 -8 -8 -7 -7 -7 -7 -5 -5 -5 -5 -4 -4 -3 -3 -3 --------- Run | Scr Mat Min Mat Min Exi Min Mat Gar Mat Gar Fac Sto Gar Rec Fac Upp Upp Zhi Pro Fac Res Gar Qua Total 8908 | . 341 254 325 75 244 166 51 334 268 759 751 295 202 178 706 414 317 158 338 232 88 746 1666 Wait 830 | . 5 . 19 . . . . 1 62 5 18 14 . . 76 7 59 1 . 2 19 85 457 Move 6804 | . 308 246 240 72 242 166 45 284 127 603 633 187 148 174 534 356 238 142 306 190 53 558 952 Hop . | . . . . . . . . . . . . . . . . . . . . . . . . Pick Up 101 | . 6 . 10 . 2 . . 11 9 12 6 10 1 . 4 1 . 2 . 1 . 7 19 Fast Attach 102 | . 2 . 4 . . . . . 4 6 9 4 3 . 7 6 3 6 5 3 1 6 33 Attach 47 | . 1 . 3 . . . . 3 1 3 3 2 4 . 6 . . . . 3 1 2 15 Detach 30 | . 1 . . . . . . . 1 . 1 2 . . . . . . . 2 2 2 19 Swap 76 | . 3 . 4 . . . . . 8 5 11 9 4 3 4 1 1 . 2 5 . 6 10 Drop 132 | . . . 12 . . . . 8 15 10 12 13 5 . . . . 7 3 2 . 4 41 Fire 696 | . 14 4 33 3 . . 6 27 41 96 52 44 33 . 73 43 16 . 22 23 12 74 80 Melee 40 | . . . . . . . . . . . . 7 . . . . . . . . . . 33 Ram . | . . . . . . . . . . . . . . . . . . . . . . . . Kick 5 | . 1 4 . . . . . . . . . . . . . . . . . . . . . Crush 15 | . . . . . . . . . . . 6 . . 1 2 . . . . 1 . . 5 Escape Stasis 14 | . . . . . . . . . . 6 . . 4 . . . . . . . . 2 2 Rewire 16 | . . . . . . . . . . 13 . 3 . . . . . . . . . . . Trap . | . . . . . . . . . . . . . . . . . . . . . . . . Miscellaneous . | . . . . . . . . . . . . . . . . . . . . . . . . Route ------- -11/Scrapyard -10/Materials (discovered 4 exits: *Mat x2 / *Min x2) -10/Mines -9/Materials (discovered 2 exits: *Mat / *Min) -9/Mines -9/Exiles -8/Mines -8/Materials -8/Garrison -8/Materials -8/Garrison (discovered 3 exits: *Fac x3) -7/Factory (discovered 4 exits: *Sto x2 / Low x2) -7/Storage -7/Garrison -7/Recycling -5/Factory (discovered 2 exits: *Fac / *Upp) -5/Upper Caves -5/Upper Caves -5/Zhirov -4/Proximity Caves -4/Factory (discovered 3 exits: *Res / *Upp x2) -3/Research -3/Garrison (discovered 3 exits: *Qua x3) -3/Quarantine (discovered 1 exit: *Res) History --------- Turn | Location | Event 1 | -11/Scrapyard | Identified exit to Materials 1 | -11/Scrapyard | Discovered exit to Materials (range 0) 1 | -11/Scrapyard | Entered Materials 1 | -10/Materials | Evolved 1 slot: Utility x1 301 | -10/Materials | Build established: Hacker-Mutant 332 | -10/Materials | Identified exit to Mines 573 | -10/Materials | Identified exit to Materials 573 | -10/Materials | Discovered exit to Materials (range 3) 746 | -10/Materials | Discovered exit to Materials (range 16) 769 | -10/Materials | Entered Mines 1448 | -10/Mines | Discovered exit to Materials (range 9) 1481 | -10/Mines | Entered Materials 1481 | -9/Materials | Evolved 2 slots: Propulsion x1, Utility x1 1504 | -9/Materials | Identified exit to Mines 1953 | -9/Materials | Identified exit to Materials 1953 | -9/Materials | Discovered exit to Materials (range 10) 2190 | -9/Materials | Entered Mines 2245 | -9/Mines | Assisted by bots powering up and referring to "LRC-V3" 2307 | -9/Mines | Deemed a non-threat by the Exiles lab entrance 2308 | -9/Mines | Identified exit to Exiles 2308 | -9/Mines | Discovered exit to Exiles (range 5) 2315 | -9/Mines | Entered Exiles 2315 | -9/Exiles | Found Exiles lab abandoned 2315 | -9/Exiles | Accompanied by 1 ally 2690 | -9/Exiles | Identified exit to Mines 2690 | -9/Exiles | Discovered exit to Mines (range 10) 2705 | -9/Exiles | Entered Mines 2705 | -8/Mines | Accompanied by 1 ally 2945 | -8/Mines | Discovered exit to Materials (range 15) 2971 | -8/Mines | Entered Materials 2971 | -8/Materials | Accompanied by 1 ally 2971 | -8/Materials | Evolved 2 slots: Propulsion x1, Utility x1 3061 | -8/Materials | Identified exit to Garrison 3061 | -8/Materials | Entered Garrison 3069 | -8/Garrison | Installed Relay Interface Framework 3122 | -8/Garrison | Triggered checkpoint 3143 | -8/Garrison | Garrison Relay disabled 3228 | -8/Garrison | Triggered checkpoint 3300 | -8/Garrison | Triggered checkpoint 3361 | -8/Garrison | Garrison Relay disabled 3456 | -8/Garrison | Triggered checkpoint 3515 | -8/Garrison | Identified exit to Materials 3515 | -8/Garrison | Discovered exit to Materials (range 10) 3530 | -8/Garrison | Triggered checkpoint 3565 | -8/Garrison | Garrison Relay disabled 3616 | -8/Garrison | Entered Materials 3699 | -8/Materials | Repaired Hvy. Ion Engine 3911 | -8/Materials | Garrison activated, responded to threat 4018 | -8/Materials | Identified exit to Garrison 4023 | -8/Materials | Entered Garrison 4044 | -8/Garrison | Triggered checkpoint 4137 | -8/Garrison | Destroyed 7 combat bots 4144 | -8/Garrison | Lost 3 parts (1n2u) 4167 | -8/Garrison | Garrison Relay disabled 4228 | -8/Garrison | Spotted B-75 Beast 4228 | -8/Garrison | Spotted B-75 Beast 4274 | -8/Garrison | Destroyed B-75 Beast 4278 | -8/Garrison | Core integrity fell below 50% 4294 | -8/Garrison | Destroyed B-75 Beast 4316 | -8/Garrison | Lost 6 parts (3n2u1w) 4362 | -8/Garrison | Triggered checkpoint 4427 | -8/Garrison | Identified exit to Factory 4427 | -8/Garrison | Discovered exit to Factory (range 13) 4722 | -8/Garrison | Triggered checkpoint 4750 | -8/Garrison | Garrison Relay disabled 4840 | -8/Garrison | Triggered checkpoint 4933 | -8/Garrison | Discovered exit to Factory (range 8) 5022 | -8/Garrison | Triggered checkpoint 5057 | -8/Garrison | Garrison Relay disabled 5158 | -8/Garrison | Triggered checkpoint 5266 | -8/Garrison | Triggered checkpoint 5306 | -8/Garrison | Garrison Relay disabled 5379 | -8/Garrison | Discovered exit to Factory (range 12) 5430 | -8/Garrison | Expanded RIF knowledge: Coupler Efficiency 5501 | -8/Garrison | Entered Factory 5501 | -7/Factory | Evolved 2 slots: Utility x2 5680 | -7/Factory | Identified exit to Storage 5680 | -7/Factory | Identified exit to Lower Caves 6530 | -7/Factory | Fabricated Huge Storage Unit (x1) 6761 | -7/Factory | Build established: Bothacker-Mutant 6860 | -7/Factory | Entered Storage 6921 | -7/Storage | Met a pair of Derelict thieves 7022 | -7/Storage | Destroyed 8 combat bots 7515 | -7/Storage | Garrison activated, responded to threat 7531 | -7/Storage | Identified exit to Garrison 7531 | -7/Storage | Entered Garrison 7531 | -7/Garrison | Accompanied by 1 ally 7582 | -7/Garrison | Triggered checkpoint 7639 | -7/Garrison | Garrison Relay disabled 7778 | -7/Garrison | Triggered checkpoint 7838 | -7/Garrison | Destroyed 9 combat bots 7866 | -7/Garrison | Lost 3 parts (2n1u) 7896 | -7/Garrison | Triggered checkpoint 7980 | -7/Garrison | Identified exit to Recycling 7980 | -7/Garrison | Discovered exit to Recycling (range 13) 8025 | -7/Garrison | Expanded RIF knowledge: Autooverride 8039 | -7/Garrison | Entered Recycling 8040 | -7/Recycling | Joined Derelict attack on 0b10 via Recycling 8064 | -7/Recycling | Spotter reported a threat 8064 | -7/Recycling | Spotter reported a threat 8065 | -7/Recycling | Spotter reported a threat 8072 | -7/Recycling | Spotter reported a threat 8073 | -7/Recycling | Spotter reported a threat 8073 | -7/Recycling | Spotter reported a threat 8079 | -7/Recycling | Spotter reported a threat 8089 | -7/Recycling | Spotter reported a threat 8110 | -7/Recycling | Spotter reported a threat 8110 | -7/Recycling | Spotter reported a threat 8110 | -7/Recycling | Spotter reported a threat 8110 | -7/Recycling | Spotter reported a threat 8161 | -7/Recycling | Spotter reported a threat 8161 | -7/Recycling | Spotter reported a threat 8161 | -7/Recycling | Spotter reported a threat 8161 | -7/Recycling | Spotter reported a threat 8183 | -7/Recycling | Identified exit to Factory 8212 | -7/Recycling | Spotter reported a threat 8212 | -7/Recycling | Spotter reported a threat 8212 | -7/Recycling | Spotter reported a threat 8212 | -7/Recycling | Spotter reported a threat 8265 | -7/Recycling | Spotter reported a threat 8265 | -7/Recycling | Spotter reported a threat 8265 | -7/Recycling | Spotter reported a threat 8265 | -7/Recycling | Spotter reported a threat 8318 | -7/Recycling | Spotter reported a threat 8325 | -7/Recycling | Spotter reported a threat 8339 | -7/Recycling | Entered Factory 8339 | -5/Factory | Evolved 4 slots: Propulsion x1, Utility x3 8350 | -5/Factory | 1 allies followed out of Recycling 8377 | -5/Factory | Build established: Hacker-Mutant 8636 | -5/Factory | Identified exit to Factory 8636 | -5/Factory | Discovered exit to Factory (range 14) 8639 | -5/Factory | First assault squad dispatched 8791 | -5/Factory | Destroyed 8 combat bots 8793 | -5/Factory | Lost 5 parts (1n4u) 8996 | -5/Factory | Build established: Bothacker-Mutant 9329 | -5/Factory | System corruption reached 10% 9425 | -5/Factory | Repaired Prc. Assault Rifle 9627 | -5/Factory | Identified exit to Upper Caves 9627 | -5/Factory | Discovered exit to Upper Caves (range 15) 9748 | -5/Factory | Entered Upper Caves 9748 | -5/Upper Caves | Accompanied by 3 allies 10053 | -5/Upper Caves | Learned location of 1 exit from Factory 10076 | -5/Upper Caves | Attracted the attention of an 0b10 checkpoint 10353 | -5/Upper Caves | Learned Factory terminal intel 10526 | -5/Upper Caves | Identified exit to Upper Caves 10526 | -5/Upper Caves | Discovered exit to Upper Caves (range 6) 10539 | -5/Upper Caves | Entered another Upper Caves area 10539 | -5/Upper Caves | Accompanied by 1 ally 10592 | -5/Upper Caves | Learned 4 Factory zone layouts 10677 | -5/Upper Caves | Lost 3 parts (1p2n) 11058 | -5/Upper Caves | Identified exit to Zhirov 11058 | -5/Upper Caves | Discovered exit to Zhirov (range 12) 11076 | -5/Upper Caves | Entered Zhirov 11076 | -5/Zhirov | Accompanied by 1 ally 11076 | -5/Zhirov | Identified exit to Proximity Caves 11076 | -5/Zhirov | Discovered exit to Proximity Caves (range 3) 11106 | -5/Zhirov | Met Zhirov 11141 | -5/Zhirov | Learned location of Quarantine (-3) 11141 | -5/Zhirov | Learned location of Testing (-2) 11141 | -5/Zhirov | Learned location of Command (-1) 11151 | -5/Zhirov | Zhirov requested help retrieving the SGEMP Prototype 11177 | -5/Zhirov | Found Alien Artifact 11177 | -5/Zhirov | Identified Integrated Reactor 11177 | -5/Zhirov | Installed Integrated Reactor, increased core energy generation (+10) 11200 | -5/Zhirov | Found Alien Artifact 11319 | -5/Zhirov | Entered Proximity Caves 11319 | -4/Proximity Caves | Accompanied by 1 ally 11425 | -4/Proximity Caves | Spotted B-86 Titan 11465 | -4/Proximity Caves | Destroyed B-86 Titan 11489 | -4/Proximity Caves | Lost 7 parts (4n3u) 12158 | -4/Proximity Caves | Discovered exit to Factory (range 6) 12177 | -4/Proximity Caves | Entered Factory 12177 | -4/Factory | Evolved 2 slots: Propulsion x1, Utility x1 12178 | -4/Factory | Identified exit to Upper Caves 12179 | -4/Factory | Identified exit to Research 12180 | -4/Factory | Loaded intel: 17 terminal locations 12568 | -4/Factory | Entered Research 12568 | -3/Research | Accompanied by 5 allies 12568 | -3/Research | Evolved 2 slots: Utility x2 12688 | -3/Research | Identified exit to Garrison 12695 | -3/Research | Entered Garrison 12695 | -3/Garrison | Accompanied by 5 allies 12740 | -3/Garrison | Triggered checkpoint 12763 | -3/Garrison | Spotted B-86 Titan 12799 | -3/Garrison | Allies destroyed B-86 Titan 12822 | -3/Garrison | Triggered checkpoint 12861 | -3/Garrison | Triggered checkpoint 12936 | -3/Garrison | Identified exit to Quarantine 12936 | -3/Garrison | Discovered exit to Quarantine (range 9) 13012 | -3/Garrison | Triggered checkpoint 13076 | -3/Garrison | Garrison Relay disabled 13178 | -3/Garrison | Triggered checkpoint 13352 | -3/Garrison | Triggered checkpoint 13370 | -3/Garrison | Garrison Relay disabled 13408 | -3/Garrison | Discovered exit to Quarantine (range 14) 13445 | -3/Garrison | Expanded RIF knowledge: Program Shield 13627 | -3/Garrison | System corruption reached 10% 13742 | -3/Garrison | Build established: Botlord-Mutant 13750 | -3/Garrison | Triggered checkpoint 13776 | -3/Garrison | Garrison Relay disabled 13858 | -3/Garrison | Discovered exit to Quarantine (range 14) 13886 | -3/Garrison | Entered Quarantine 13886 | -3/Quarantine | Accompanied by 3 allies 13912 | -3/Quarantine | Found Prototype Launcher 13912 | -3/Quarantine | Identified Hellfire Missile Launcher 14098 | -3/Quarantine | Repaired Hvy. Siege Treads 14117 | -3/Quarantine | Repaired Hvy. Treads 14235 | -3/Quarantine | Found Launcher Loader 14309 | -3/Quarantine | Found Alien Energy Cannon 14327 | -3/Quarantine | Identified exit to Research 14384 | -3/Quarantine | Found Alien Artifact 14593 | -3/Quarantine | Found Alien Impact Weapon 14817 | -3/Quarantine | Identified Core Stripper 14825 | -3/Quarantine | Found Alien Artifact 14825 | -3/Quarantine | Identified Phase Armor 14827 | -3/Quarantine | Identified Core Reset Matrix 14827 | -3/Quarantine | Identified Transdimensional Reconstructor 14827 | -3/Quarantine | Identified Core Cannon 14827 | -3/Quarantine | Used Core Reset Matrix 14831 | -3/Quarantine | Detected hypermatrix surge 14831 | -3/Quarantine | Sensed 10 artifacts in vicinity 14961 | -3/Quarantine | Warped through subspace 15019 | -3/Quarantine | Scanned by Researcher 15115 | -3/Quarantine | Found Sigix Broadsword 15128 | -3/Quarantine | Build established: Hacker-Mutant 15171 | -3/Quarantine | Core integrity fell below 50% 15534 | -3/Quarantine | Cryocooling Duct disabled 15534 | -3/Quarantine | Cryocooling Duct disabled 15549 | -3/Quarantine | Ambient heat levels rising (+40) 15549 | -3/Quarantine | Non-combat units ordered to evacuate 15549 | -3/Quarantine | Combat units ordered to evacuate 15649 | -3/Quarantine | Quarantine Guard activated 15697 | -3/Quarantine | Met incapacitated Sigix Warrior 15697 | -3/Quarantine | Lockdown squad dispatched 15717 | -3/Quarantine | Acquired the access code to the Sigix quarantine chamber 15720 | -3/Quarantine | Unlocked Sigix quarantine chamber 15805 | -3/Quarantine | Spotted Lightning 15810 | -3/Quarantine | Spotted Lightning 15810 | -3/Quarantine | Spotted Lightning 15821 | -3/Quarantine | Spotted Quarantine Guard 15830 | -3/Quarantine | Emitted hypermatrix ping 15835 | -3/Quarantine | Assembled emerged from beneath the floor 15847 | -3/Quarantine | Destroyed Lightning 15860 | -3/Quarantine | Destroyed Quarantine Guard 15865 | -3/Quarantine | Found Prototype Energy Cannon 15870 | -3/Quarantine | Allies destroyed Lightning 15872 | -3/Quarantine | Found Prototype Processor 15872 | -3/Quarantine | Identified Exp. Targeting Computer 15875 | -3/Quarantine | Found Prototype Device 15875 | -3/Quarantine | Identified EM Dispersion Field 15877 | -3/Quarantine | Allies destroyed Lightning 15921 | -3/Quarantine | Spotted Quarantine Guard 15929 | -3/Quarantine | Destroyed Quarantine Guard 16006 | -3/Quarantine | Spotted Quarantine Guard 16015 | -3/Quarantine | Core integrity fell below 20% 16020 | -3/Quarantine | Destroyed Quarantine Guard 16054 | -3/Quarantine | Spotted Quarantine Guard 16062 | -3/Quarantine | Destroyed Quarantine Guard 16089 | -3/Quarantine | Spotted Quarantine Guard 16112 | -3/Quarantine | Destroyed Quarantine Guard 16138 | -3/Quarantine | Discovered exit to Research (range 10) 16138 | -3/Quarantine | Spotted Quarantine Guard 16154 | -3/Quarantine | Destroyed Quarantine Guard 16184 | -3/Quarantine | Found Phase Redirector 16195 | -3/Quarantine | Spotted Quarantine Guard 16241 | -3/Quarantine | Destroyed Quarantine Guard 16314 | -3/Quarantine | Spotted Quarantine Guard 16314 | -3/Quarantine | Spotted Quarantine Guard 16351 | -3/Quarantine | Destroyed by Quarantine Guard with Hypercooled Linear Accelerator Last Messages --------------- 16259_ Integrated Corrupted Exp. Coolant Injector (+4). 16260_ The unstable cave ceiling collapses. 16264_ Acquired Unknown Device. 16264_ Identified Adv. Cryofiber Web. 16267_ Integrated Corrupted Adv. Cooling System (+1). 16282_ System corrupted: Component data lost. 16287_ Acquired 7 matter. 16289_ Acquired 14 matter. 16298_ System corrupted: Component data lost. 16300_ The unstable cave ceiling collapses. 16322_ System corrupted: IFF burst signal emitted. 16323_ Dropped Lgt. Ion Engine. 16323_ Acquired Unknown Reactor. 16323_ Identified Lgt. Antimatter Reactor. 16328_ Lgt. Antimatter Reactor destroyed. 16337_ The unstable cave ceiling collapses. 16339_ Quarantine Guard suffers critical hit (Destroy). 16339_ Destroyed Unknown Treads. 16340_ 61PPZ8PSEUQUGYPR1LECAIB8XV75%R 16342_ The unstable cave ceiling collapses. Map ----- +----------------------------------------------------+ | # " " # % " " ##?????????????????????? | | # " # """ " # #????????????????????? | | | # # % #????????????????????? | | ## # #= # # # ##???????????????????? | | #"+######### =% # %% #???????????????????? | | "#???????????????????? | | = %% T#?########??????????? | | = % #?# #??????????? | | #?# #??????????? | | ##"" !!= ] #?# #??????????? | | ]! * #?# #??????????? | | !]= ## ## ######## #??????????? | | ! + #??????????? | | """ # ! = # #??????????? | | """ # = + "" #??????????? | | """ # # "" #??????????? | | % ## ### #"######### # """ #??????????? | | # # ##?????# # # "" #??????????? | | #"##### #??????# # # """ #??????????? | | # #???## = ######## # # #??????????? | | #!##### ==#;#;#;#####= # #??????????? | | == ## |%!+ =% # #####??????????? | | ## # # # #[= * ] # ##??????????????? | | =[! % % ]###???????????????? | | [% % /]]##????????????????? | | ! % @Y /]]#?????????????????? | | ########+##### #?????????????????? | | #????? ??# # % % ##????????????????? | | # ####??? ???# ; #????????????????? | | # #??????" ????#%# #????????????????? | | # #?????#""??!??# # ^#????????????????? | | # #?????#!?????!# ##+#####????????????????? | | # #??????!!???!! # ????????????????????? | | # #???????????## # !????????????????????? | | # #???????????? ????????????????????? | | # #???????????# # ????????????????????? | | # #???????????## = ????????????????????? | | ?+?????????????# / ! ????????????????????? | | ??????????????? # ###????????????????????? | | ?????????????????#! #??????????????????????? | | ?????????????????### ##???????????????????????? | | ?????????????????????????????????????????????????? | | ?????????????????????????????????????????????????? | | ?????????????????????????????????????????????????? | | ?????????????????????????????????????????????????? | | ?????????????????????????????????????????????????? | | ?????????????????????????????????????????????????? | | ?????????????????????????????????????????????????? | | ?????????????????????????????????????????????????? | | ?????????????????????????????????????????????????? | +----------------------------------------------------+ Best States ------------- Heat Dissipation 108 Coolant Potential 120 Energy Generation 35 Energy Capacity 1050 Matter Stores 600 Matter Capacity 600 Sight Range 16 Robot Scan Range 16 Terrain Scan Density 10 Jamming Range 14 Base Temperature (-) 200 Armor Coverage 1200 Resistance: KI 35 Resistance: TH 50 Resistance: EX 35 Resistance: EM 100 Resistance: I 35 Resistance: S 35 Resistance: P 35 Power Shielding 33 Weapon Shielding 66 Weapon Cycling 20 Phase Shifting 10 Evasion (%) 55 Targeting Accuracy 13 Recoil Reduction 6 Offensive Hacking 34 Defensive Hacking 10 Relay Coupler Types 198 Relay Coupler Value 5 Item Schematics ----------------- None Robot Schematics ------------------ None Fabricated ------------ Huge Storage Unit | x1 | -7/Factory Alien Tech Used ----------------- Integrated Reactor Core Stripper Phase Armor Core Reset Matrix Transdimensional Reconstructor Core Cannon Sigix Broadsword Phase Redirector Achievements -------------- None Challenges ------------ None Game ------ Seed SuperchargedSmartbombFrame Manual? 0 Play Time 01:44:37 Cumulative 351.1 hours Start 2021.05.14 @ 11:35:49 End 2021.05.15 @ 13:25:13 Sessions 9 Manual Loads 0 Difficulty Explorer Special Mode None Game No. 345 Rogue 146 Adventurer 112 Explorer 87 Win Type - Total 24 Types 17/0/5/2/0/0/0/0/0 Lore% 82 Gallery% 89 Achievement% 71 Wizard Run 0 Options --------- ASCII 0 Keyboard 0 Movement Numpad Keybinds 0 Fullscreen 2 Font 18/TerminusBold Map View 76x50 Tactical HUD 1 Map Filters NONE Filters NONE Steam 1 RUN: 792ec44a-fbef-44b6-8186-d82730f72d8c